bitfinex-derivatives/quotes_BTCF0:USTF0_20250810
["timestamp","ask_amount","ask_price","bid_price","bid_amount"]
[1754856410071,0.55655725,118790.0,118780.0,0.6786905]
[1754856419971,0.23472226,118790.0,118780.0,0.6786905]
[1754856420281,0.55655725,118790.0,118780.0,0.6786905]
[1754856423883,0.35553075,118790.0,118780.0,1.00114549]
[1754856424185,0.03369576,118790.0,118780.0,1.00114549]
[1754856424982,0.35553075,118790.0,118780.0,1.00114549]
[1754856428687,0.03369576,118790.0,118780.0,1.00114549]
[1754856430182,0.0252816,118790.0,118780.0,1.00114549]
[1754856431485,0.04755429,118790.0,118780.0,1.00114549]
[1754856432685,0.36938928,118790.0,118780.0,0.6793105]
[1754856432887,0.36938928,118790.0,118780.0,1.00114549]
[1754856433084,0.36938928,118790.0,118780.0,0.6793105]
[1754856433290,0.43787928,118790.0,118780.0,1.00114549]
[1754856433591,0.45405928,118790.0,118780.0,1.00114549]
[1754856433886,0.49103928,118790.0,118780.0,1.00114549]
[1754856442094,0.49122112,118790.0,118780.0,1.00114549]
[1754856448996,0.47085768,118790.0,118780.0,1.00114549]
[1754856449490,0.49133616,118790.0,118780.0,1.00114549]
[1754856449704,0.49133616,118790.0,118780.0,1.3823105]
[1754856449992,0.59249241,118790.0,118780.0,1.3823105]
[1754856450188,0.59249241,118790.0,118780.0,1.4155805]
[1754856450392,0.59249241,118790.0,118780.0,1.3823105]
[1754856450592,0.59249241,118790.0,118780.0,1.4292905]
[1754856450991,0.59249241,118790.0,118780.0,1.4525105]
[1754856451894,0.27065742,118790.0,118780.0,0.6785105]
[1754856452099,0.59249241,118790.0,118780.0,0.6785105]
[1754856452996,0.59249241,118790.0,118780.0,0.3177105]
[1754856453193,0.59249241,118790.0,118780.0,0.6785105]
[1754856454401,0.59249241,118790.0,118780.0,0.3177105]
[1754856462209,0.27065742,118790.0,118780.0,0.3177105]
[1754856462409,0.59249241,118790.0,118780.0,1.0916705]
[1754856463903,0.27065742,118790.0,118780.0,1.0916705]
[1754856464099,0.59249241,118790.0,118780.0,1.0916705]
[1754856466705,0.27065742,118790.0,118780.0,0.3177105]
[1754856466908,0.59249241,118790.0,118780.0,1.0916705]
[1754856467912,0.27065742,118790.0,118780.0,1.0916705]
[1754856468116,0.59249241,118790.0,118780.0,1.0916705]
[1754856469508,0.59249241,118790.0,118780.0,1.4524705]
[1754856470214,0.59249241,118790.0,118780.0,1.0916705]
[1754856470416,0.27065742,118790.0,118780.0,1.0916705]
[1754856470619,0.59249241,118790.0,118780.0,1.0916705]
[1754856471114,0.59249241,118790.0,118780.0,1.4524705]
[1754856471415,0.59249241,118790.0,118780.0,1.0916705]
[1754856472317,0.59249241,118790.0,118780.0,1.4524705]
[1754856472616,0.59249241,118790.0,118780.0,1.0916705]
[1754856475813,0.17368742,118790.0,118780.0,1.0916705]
[1754856476020,0.58975241,118790.0,118780.0,1.4524705]
[1754856476220,0.58975241,118790.0,118780.0,1.0916705]
[1754856478819,0.58975241,118790.0,118780.0,1.4524705]
[1754856479515,0.58975041,118790.0,118780.0,1.4524705]
[1754856480820,0.58975041,118790.0,118780.0,1.0916705]
[1754856487114,0.26791542,118790.0,118780.0,1.0916705]
[1754856487314,0.58975041,118790.0,118780.0,1.0916705]
[1754856492528,0.58975041,118790.0,118780.0,0.3177105]
[1754856492731,0.58975041,118790.0,118780.0,1.0915905]
[1754856496732,0.26791542,118790.0,118780.0,1.0915905]
[1754856496935,0.58975041,118790.0,118780.0,1.0915905]
[1754856497632,0.26791542,118790.0,118780.0,1.0915905]
[1754856498033,0.58975041,118790.0,118780.0,1.0915905]
[1754856504137,0.26791542,118790.0,118780.0,1.0915905]
[1754856504437,0.58975041,118790.0,118780.0,1.0915105]
[1754856507843,0.26791542,118790.0,118780.0,1.0915105]
[1754856508041,0.58975041,118790.0,118780.0,1.0915105]
[1754856510742,0.26791542,118790.0,118780.0,1.0915105]
[1754856510937,0.58975041,118790.0,118780.0,1.0915105]
[1754856513047,0.5897738,118790.0,118780.0,1.0915105]
[1754856517145,0.5897738,118790.0,118780.0,0.3177105]
[1754856517346,0.5897738,118790.0,118780.0,1.0913905]
[1754856519035,0.5413738,118790.0,118780.0,1.0913905]
[1754856519241,0.5902238,118790.0,118780.0,1.0913905]
[1754856520046,0.5902238,118790.0,118780.0,0.2809415]
[1754856520247,0.5902238,118790.0,118780.0,1.0936515]
[1754856523053,0.9510238,118790.0,118780.0,1.0936515]
[1754856524055,0.9510238,118790.0,118780.0,0.3200115]
[1754856538679,1.36066608,118790.0,118780.0,0.115918]
[1754856539174,1.36066608,118790.0,118780.0,0.001]
[1754856539369,0.2064506,118770.0,118760.0,0.3367436]
[1754856539678,0.87072245,118770.0,118760.0,0.3367436]
[1754856539877,0.0938977,118760.0,118750.0,0.7003806]
[1754856540063,0.54889456,118760.0,118750.0,0.8180052]
[1754856541077,0.22705957,118760.0,118750.0,0.8180052]
[1754856541279,0.54989456,118760.0,118750.0,0.8210052]
[1754856541779,0.22905957,118760.0,118750.0,0.8260052]
[1754856542080,0.55089456,118760.0,118750.0,0.8260052]
[1754856542379,1.32441456,118760.0,118750.0,0.9409232]
[1754856543081,1.32441456,118760.0,118750.0,0.8567286]
[1754856543778,1.32441456,118760.0,118750.0,0.7842286]
[1754856543978,1.32441456,118760.0,118750.0,0.8323486]
[1754856544174,1.32441456,118760.0,118750.0,0.8567286]
[1754856546877,1.32441456,118760.0,118750.0,0.4959286]
[1754856548583,1.32441456,118760.0,118750.0,0.170848]
[1754856548793,2.09988558,118760.0,118750.0,0.122918]
[1754856549174,1.77805059,118760.0,118750.0,0.122918]
[1754856551280,1.4562156,118760.0,118750.0,0.122918]
[1754856551586,1.77805059,118760.0,118750.0,0.122918]
[1754856552082,1.4562156,118760.0,118750.0,0.122918]
[1754856552284,1.77805059,118760.0,118750.0,0.122918]
[1754856553686,1.4562156,118760.0,118750.0,0.122918]
[1754856553880,1.77805059,118760.0,118750.0,0.122918]
[1754856554082,1.00453059,118760.0,118750.0,0.122918]
[1754856554281,1.77809059,118760.0,118750.0,0.122918]
[1754856558091,1.77809059,118760.0,118750.0,0.2071125]
[1754856560498,1.77809059,118760.0,118750.0,0.122918]
[1754856560798,1.77809059,118760.0,118750.0,0.2071125]
[1754856561997,1.77809059,118760.0,118750.0,0.122918]
[1754856562293,0.2041816,118740.0,118730.0,0.0843051]
[1754856562497,1.64201345,118740.0,118730.0,0.0843051]
[1754856563091,1.64201345,118740.0,118730.0,0.1348851]
[1754856563699,1.64301345,118740.0,118730.0,0.1398851]
[1754856563896,1.64301345,118740.0,118730.0,0.1428851]
[1754856564090,1.64501345,118740.0,118730.0,0.1428851]
[1754856564887,1.64401345,118740.0,118730.0,0.1378851]
[1754856565193,1.64501345,118740.0,118730.0,0.1428851]
[1754856565397,1.64501345,118740.0,118730.0,0.2578031]
[1754856566291,1.71250203,118740.0,118730.0,0.2578031]
[1754856567999,1.71250203,118740.0,118730.0,0.2420331]
[1754856568197,1.80792842,118740.0,118730.0,0.2072231]
[1754856569005,1.80792842,118740.0,118730.0,0.2578031]
[1754856571203,1.80792842,118740.0,118730.0,0.2072231]
[1754856572202,1.80792842,118740.0,118730.0,0.2420331]
[1754856572795,2.16872842,118740.0,118730.0,0.123018]
[1754856572997,2.16872842,118740.0,118730.0,0.2072266]
[1754856573202,2.16872842,118740.0,118730.0,0.123018]
[1754856574505,1.52505844,118740.0,118730.0,0.123018]
[1754856574706,2.16872842,118740.0,118730.0,0.123018]
[1754856583005,2.16872842,118740.0,118730.0,0.2072266]
[1754856583905,2.16872842,118740.0,118730.0,0.123018]
[1754856584516,2.16872842,118740.0,118730.0,0.2072266]
[1754856585314,2.16872842,118740.0,118730.0,0.123018]
[1754856586617,2.16872842,118740.0,118730.0,0.2072266]
[1754856587510,2.16872842,118740.0,118730.0,0.2072267]
[1754856588317,1.80792842,118740.0,118730.0,0.123018]
[1754856588615,2.16872842,118740.0,118730.0,0.123018]
[1754856593026,2.22939208,118740.0,118730.0,0.123018]
[1754856595418,2.16872842,118740.0,118730.0,0.2072267]
[1754856595607,2.16872842,118740.0,118730.0,0.123018]
[1754856599222,1.80792842,118740.0,118730.0,0.123018]
[1754856599415,2.16872842,118740.0,118730.0,0.123018]
[1754856602122,1.80792842,118740.0,118730.0,0.123018]
[1754856602327,2.16872842,118740.0,118730.0,0.123018]
[1754856608037,1.39516842,118740.0,118730.0,0.123018]
[1754856608333,2.17380842,118740.0,118730.0,0.123018]
[1754856610437,1.81300842,118740.0,118730.0,0.123018]
[1754856610632,2.17380842,118740.0,118730.0,0.123018]
[1754856624036,2.17370842,118740.0,118730.0,0.09790266]
[1754856624240,0.2013358,118720.0,118710.0,0.1316423]
[1754856624444,1.64534765,118720.0,118710.0,0.1656123]
[1754856624640,1.32351266,118720.0,118710.0,0.1656123]
[1754856624842,1.64534765,118720.0,118710.0,0.1656123]
[1754856625240,1.64534765,118720.0,118710.0,0.1798523]
[1754856625440,1.32361266,118720.0,118710.0,0.2038923]
[1754856625747,1.32361266,118720.0,118710.0,0.2068923]
[1754856625941,1.32561266,118720.0,118710.0,0.2068923]
[1754856626444,1.32661266,118720.0,118710.0,0.2068923]
[1754856626646,1.64844765,118720.0,118710.0,0.08449]
[1754856626846,1.74209161,118720.0,118710.0,0.1687128]
[1754856627346,1.74209161,118720.0,118710.0,0.2806308]
[1754856627347,1.74009161,118720.0,118710.0,0.2806308]
[1754856627537,1.74209161,118720.0,118710.0,0.115018]
[1754856627943,1.74209161,118720.0,118710.0,0.2332108]
[1754856628244,1.74209161,118720.0,118710.0,0.2496908]
[1754856628442,1.42025662,118720.0,118710.0,0.2948708]
[1754856628642,1.42025662,118720.0,118710.0,0.3188108]
[1754856628838,1.42025662,118720.0,118710.0,0.2948708]
[1754856629040,1.42025662,118720.0,118710.0,0.3188108]
[1754856635056,1.78105662,118720.0,118710.0,0.3188108]
[1754856637356,1.42025662,118720.0,118710.0,0.3188108]
[1754856637557,1.78105662,118720.0,118710.0,0.3188108]
[1754856637761,1.45922163,118720.0,118710.0,0.3188108]
[1754856637946,1.78105662,118720.0,118710.0,0.3188108]
[1754856639962,1.42025662,118720.0,118710.0,0.3188108]
[1754856640254,1.78105662,118720.0,118710.0,0.3188108]
[1754856641063,1.78104471,118720.0,118710.0,0.3188108]
[1754856642758,1.78104471,118720.0,118710.0,0.2948708]
[1754856643061,1.78104471,118720.0,118710.0,0.2806308]
[1754856643759,1.78104471,118720.0,118710.0,0.2466608]
[1754856643957,1.78104471,118720.0,118710.0,0.2157208]
[1754856645859,1.78104471,118720.0,118710.0,0.2473408]
[1754856646162,1.78104471,118720.0,118710.0,0.163118]
[1754856646458,1.78104471,118720.0,118710.0,0.2473409]
[1754856646652,1.78104471,118720.0,118710.0,0.2157209]
[1754856647062,1.78104471,118720.0,118710.0,0.115018]
[1754856647362,1.78104471,118720.0,118710.0,0.1992411]
[1754856654861,1.42024471,118720.0,118710.0,0.1992411]
[1754856655061,1.78104471,118720.0,118710.0,0.1992411]
[1754856655262,1.78104471,118720.0,118710.0,0.115018]
[1754856655458,1.78104471,118720.0,118710.0,0.1992411]
[1754856655761,1.78104471,118720.0,118710.0,0.115018]
[1754856657476,2.1028797,118720.0,118710.0,0.115018]
[1754856658182,2.1023597,118720.0,118710.0,0.115018]
[1754856658976,2.4631597,118720.0,118710.0,0.115018]
[1754856660383,2.4621597,118720.0,118710.0,0.115018]
[1754856662377,2.14032471,118720.0,118710.0,0.115018]
[1754856662988,2.4621597,118720.0,118710.0,0.146638]
[1754856663590,2.4621597,118720.0,118710.0,0.115018]
[1754856668591,2.4671597,118720.0,118710.0,0.115018]
[1754856668798,0.52249609,118700.0,118690.0,0.11739]
[1754856669000,1.32270605,118700.0,118690.0,0.11739]
[1754856669498,1.33702505,118700.0,118690.0,0.11739]
[1754856670000,1.33702505,118700.0,118690.0,0.2016282]
[1754856670192,1.33912505,118700.0,118690.0,0.11749]
[1754856670993,1.34012505,118700.0,118690.0,0.11749]
[1754856671499,1.70092505,118700.0,118690.0,0.11749]
[1754856671704,1.71823281,118700.0,118690.0,0.04757]
[1754856671886,1.71823281,118700.0,118690.0,0.162488]
[1754856672088,1.71823281,118700.0,118690.0,0.232408]
[1754856672288,1.39639782,118700.0,118690.0,0.232408]
[1754856672498,1.71823281,118700.0,118690.0,0.232408]
[1754856674383,1.71823281,118700.0,118690.0,0.208268]
[1754856675197,1.71823281,118700.0,118690.0,0.115018]
[1754856676494,1.39639782,118700.0,118690.0,0.115018]
[1754856676692,1.71823281,118700.0,118690.0,0.115018]
[1754856677499,1.39639782,118700.0,118690.0,0.115018]
[1754856677795,2.0400678,118700.0,118690.0,0.115018]
[1754856678700,2.0410678,118700.0,118690.0,0.115018]
[1754856679089,2.13105523,118700.0,118690.0,0.115018]
[1754856679297,2.13095523,118700.0,118690.0,0.03001079]
[1754856679492,0.2006753,118680.0,118670.0,0.06606201]
[1754856679796,1.64867524,118680.0,118670.0,0.06606201]
[1754856679997,1.64867524,118680.0,118670.0,0.03419201]
[1754856680299,1.00500526,118680.0,118670.0,0.06606201]
[1754856680494,1.64877524,118680.0,118670.0,0.06616201]
[1754856680697,1.64977524,118680.0,118670.0,0.06616201]
[1754856680897,1.65177524,118680.0,118670.0,0.06616201]
[1754856681097,1.65177524,118680.0,118670.0,0.03429201]
[1754856681492,2.01257524,118680.0,118670.0,0.01914201]
[1754856682198,1.36890526,118680.0,118670.0,0.01914201]
[1754856682392,2.01257524,118680.0,118670.0,0.01914201]
[1754856682592,2.10578046,118680.0,118670.0,0.13406001]
[1754856683099,1.46211048,118680.0,118670.0,0.13406001]
[1754856683401,2.10578046,118680.0,118670.0,0.13406001]
[1754856685301,2.17174636,118680.0,118670.0,0.13406001]
[1754856687195,2.17174636,118680.0,118670.0,0.115018]
[1754856687395,2.18855242,118680.0,118670.0,0.115018]
[1754856691800,0.0842666,118650.0,118640.0,0.68007213]
[1754856692010,1.60344658,118650.0,118640.0,0.68007213]
[1754856692307,1.28161159,118650.0,118640.0,0.68007213]
[1754856692499,1.28161159,118650.0,118640.0,0.74999213]
[1754856692698,0.1741437,118640.0,118620.0,0.50431352]
[1754856692894,0.9881508,118630.0,118620.0,0.06610713]
[1754856693202,1.65241182,118630.0,118620.0,0.04747]
[1754856693597,1.00874184,118630.0,118620.0,0.04747]
[1754856693999,1.65441182,118630.0,118620.0,0.04747]
[1754856694196,1.29758817,118630.0,118620.0,0.04747]
[1754856694801,1.29758817,118630.0,118620.0,0.10348]
[1754856695007,1.29758817,118630.0,118620.0,0.232308]
[1754856695907,1.29858817,118630.0,118620.0,0.3165955]
[1754856696208,1.01174184,118630.0,118620.0,0.232308]
[1754856696396,1.29858817,118630.0,118620.0,0.3165955]
[1754856697411,1.31576643,118630.0,118620.0,0.3165955]
[1754856699104,1.0289201,118630.0,118620.0,0.3165955]
[1754856699310,1.31576643,118630.0,118620.0,0.3165955]
[1754856700107,1.31576643,118630.0,118620.0,0.114918]
[1754856701806,1.0289201,118630.0,118620.0,0.2714755]
[1754856702010,1.0289201,118630.0,118620.0,0.3172555]
[1754856702011,1.31576643,118630.0,118620.0,0.3172555]
[1754856702609,1.31576643,118630.0,118620.0,0.3030155]
[1754856702913,1.31576643,118630.0,118620.0,0.2702255]
[1754856703405,1.31576643,118630.0,118620.0,0.2147455]
[1754856703806,1.0289201,118630.0,118620.0,0.2147455]
[1754856704008,1.31576643,118630.0,118620.0,0.2147455]
[1754856705106,1.31576643,118630.0,118620.0,0.114918]
[1754856705311,1.67656643,118630.0,118620.0,0.114918]
[1754856707112,1.67656643,118630.0,118620.0,0.1992055]
[1754856707303,1.67656643,118630.0,118620.0,0.114918]
[1754856711014,1.76783806,118630.0,118620.0,0.114918]
[1754856714811,1.76583806,118630.0,118620.0,0.114918]
[1754856715111,1.76683806,118630.0,118620.0,0.114918]
[1754856715512,1.76683806,118630.0,118550.0,0.0843341]
[1754856715513,0.0843315,118560.0,118550.0,0.0843341]
[1754856715705,0.0843315,118560.0,118550.0,0.6936755]
[1754856715706,1.19532643,118560.0,118550.0,0.6936755]
[1754856715904,1.21580336,118560.0,118550.0,0.09411]
[1754856716104,1.57660336,118560.0,118550.0,0.03751]
[1754856716310,1.95915333,118560.0,118550.0,0.03819044]
[1754856716508,0.1545043,118540.0,118530.0,0.11805]
[1754856716706,1.26600756,118540.0,118530.0,0.2024014]
[1754856717016,1.26600756,118540.0,118530.0,0.2024009]
[1754856717217,1.26600756,118540.0,118530.0,0.11805]
[1754856717810,0.97916123,118540.0,118530.0,0.2024009]
[1754856718013,1.26600756,118540.0,118530.0,0.5632009]
[1754856718217,1.26700756,118540.0,118530.0,0.5632009]
[1754856718517,1.26900756,118540.0,118530.0,0.5632009]
[1754856719223,0.154511,118530.0,118520.0,0.10381]
[1754856719409,0.46175643,118530.0,118520.0,0.10381]
[1754856719610,0.55636035,118530.0,118520.0,0.10381]
[1754856719811,0.26951402,118530.0,118520.0,0.10381]
[1754856720011,0.62500084,118530.0,118520.0,0.10381]
[1754856720218,0.62371084,118530.0,118520.0,0.11805]
[1754856720418,1.43127084,118530.0,118520.0,0.11805]
[1754856720614,0.62371084,118530.0,118520.0,0.11805]
[1754856720920,0.2016339,118530.0,118520.0,0.5632081]
[1754856721124,0.2046339,118530.0,118520.0,0.5632081]
[1754856721306,0.49148023,118530.0,118520.0,0.5632081]
[1754856721514,0.52793023,118530.0,118520.0,0.5632081]
[1754856721805,1.0278739,118530.0,118520.0,0.5632081]
[1754856722210,1.0508439,118530.0,118520.0,0.2024081]
[1754856722411,1.35088596,118530.0,118520.0,0.5632081]
[1754856723016,0.94323863,118530.0,118520.0,0.5632081]
[1754856723219,0.55090596,118530.0,118520.0,0.02394]
[1754856723417,0.73538956,118530.0,118520.0,0.02394]
[1754856723621,1.09618956,118530.0,118520.0,0.02394]
[1754856723927,1.18596663,118530.0,118520.0,0.02394]
[1754856724126,0.8991203,118530.0,118520.0,0.02394]
[1754856724321,1.18596663,118530.0,118520.0,0.02394]
[1754856724922,0.82516663,118530.0,118520.0,0.02394]
[1754856725119,0.8991203,118530.0,118520.0,0.02394]
[1754856725331,1.18596663,118530.0,118520.0,0.02394]
[1754856725916,0.1404152,118510.0,118500.0,0.5674644]
[1754856726221,1.26004153,118510.0,118500.0,0.5367523]
[1754856726610,1.26004153,118510.0,118500.0,0.09158]
[1754856726815,1.27789017,118510.0,118500.0,0.02263]
[1754856727008,1.19352497,118510.0,118500.0,0.1854023]
[1754856727210,1.20929017,118510.0,118490.0,0.3539554]
[1754856727410,1.20929017,118510.0,118430.0,0.0001]
[1754856727411,0.5007,118480.0,118430.0,0.0001]
[1754856727616,0.1689117,118390.0,118370.0,0.1071698]
[1754856727918,1.09290413,118380.0,118370.0,0.1396645]
[1754856728221,0.8060578,118380.0,118370.0,0.16666072]
[1754856728431,0.79036124,118380.0,118370.0,0.1533245]
[1754856728725,0.42956124,118380.0,118370.0,0.1533245]
[1754856728929,0.8345963,118380.0,118370.0,0.1533245]
[1754856729421,1.27548124,118380.0,118370.0,0.1533245]
[1754856729613,0.8345963,118380.0,118370.0,0.1533245]
[1754856729815,0.06876124,118380.0,118370.0,0.3222765]
[1754856730015,0.0001,118390.0,118380.0,0.06886]
[1754856730211,1.2084,118410.0,118400.0,0.1533027]
[1754856730418,0.3608,118410.0,118400.0,0.1533027]
[1754856730835,0.91771093,118410.0,118400.0,0.02263]
[1754856731026,0.91771093,118410.0,118400.0,0.1396427]
[1754856731321,1.27704027,118410.0,118400.0,0.1533027]
[1754856731516,1.27714027,118410.0,118400.0,0.1234027]
[1754856731715,1.68217533,118410.0,118400.0,0.1234027]
[1754856731922,1.76661103,118410.0,118400.0,0.1234027]
[1754856732133,1.76661103,118410.0,118390.0,0.04623]
[1754856732134,0.084447,118400.0,118390.0,0.04623]
[1754856732427,0.43024027,118410.0,118400.0,0.0844429]
[1754856732627,0.45277027,118410.0,118400.0,0.0844429]
[1754856732927,0.45277027,118410.0,118400.0,0.2995849]
[1754856732928,0.06944027,118410.0,118400.0,0.2995849]
[1754856733129,0.06744027,118410.0,118400.0,0.2995849]
[1754856733325,1.35773921,118440.0,118420.0,0.2532698]
[1754856733630,1.67836157,118440.0,118430.0,0.1070498]
[1754856733927,1.67836157,118440.0,118430.0,0.02263]
[1754856733928,1.76277437,118440.0,118430.0,0.02263]
[1754856734131,0.10695,118430.0,118420.0,0.02263]
[1754856734317,0.1913927,118420.0,118400.0,0.2377369]
[1754856734524,0.1913927,118420.0,118390.0,0.4452454]
[1754856734525,0.6366256,118420.0,118410.0,0.0001]
[1754856734718,0.1069705,118400.0,118390.0,0.0844454]
[1754856734921,0.2533297,118400.0,118380.0,0.6830172]
[1754856735114,0.2533297,118400.0,118370.0,0.4678859]
[1754856735115,0.1069847,118380.0,118370.0,0.4678859]
[1754856735531,0.02253,118380.0,118370.0,0.4678859]
[1754856735726,0.51201896,118380.0,118370.0,0.38343]
[1754856735923,1.32200071,118380.0,118370.0,0.0001]
[1754856736119,1.23754681,118380.0,118370.0,0.0845617]
[1754856736327,1.3064837,118380.0,118370.0,0.0845617]
[1754856736530,1.3908382,118380.0,118370.0,0.0871917]
[1754856736928,0.3608,118390.0,118370.0,0.1334217]
[1754856737137,1.3158404,118400.0,118390.0,0.1533076]
[1754856737331,2.10420546,118400.0,118390.0,0.02263]
[1754856737518,0.3608,118400.0,118390.0,0.1533076]
[1754856737828,0.3609,118400.0,118390.0,0.1534076]
[1754856738131,0.85037436,118400.0,118390.0,0.1208376]
[1754856738331,2.10378436,118400.0,118390.0,0.02273]
[1754856738531,1.78882835,118400.0,118390.0,0.0001]
[1754856738843,0.02253,118380.0,118370.0,0.1533212]
[1754856739027,0.3608,118380.0,118370.0,0.1533212]
[1754856739624,0.3608,118380.0,118370.0,0.3222732]
[1754856739828,0.0001,118380.0,118370.0,1.08820826]
[1754856740027,0.0001,118380.0,118370.0,0.3223732]
[1754856740636,0.3609,118380.0,118370.0,0.1534212]
[1754856741120,0.0001,118380.0,118370.0,0.3223732]
[1754856741728,0.3609,118380.0,118370.0,0.3223732]
[1754856741934,0.38343,118380.0,118370.0,0.1534212]
[1754856742428,0.3609,118380.0,118370.0,0.1534212]
[1754856742828,0.3609,118380.0,118370.0,0.55845626]
[1754856743029,0.3609,118380.0,118370.0,0.1534212]
[1754856744628,0.38343,118380.0,118370.0,0.1534212]
[1754856745333,0.3609,118380.0,118370.0,0.1534212]
[1754856749224,0.38386392,118380.0,118370.0,0.1534212]
[1754856749540,0.38386392,118380.0,118370.0,0.1992512]
[1754856749729,0.39916392,118380.0,118370.0,0.1992512]
[1754856750528,0.3762,118380.0,118370.0,0.1992512]
[1754856751837,0.39919055,118380.0,118370.0,0.1992512]
[1754856752138,0.39921067,118380.0,118370.0,0.1992512]
[1754856753536,0.82677573,118380.0,118370.0,0.0845612]
[1754856753736,0.91122963,118380.0,118370.0,0.084561]
[1754856753939,0.82677573,118380.0,118370.0,0.084561]
[1754856754238,0.42174067,118380.0,118370.0,0.199251]
[1754856755536,0.50619447,118380.0,118370.0,0.199251]
[1754856755739,0.42174067,118380.0,118370.0,0.199251]
[1754856756140,0.82677573,118380.0,118370.0,0.199251]
[1754856757042,0.88743939,118380.0,118370.0,0.199251]
[1754856757238,0.90259248,118380.0,118370.0,0.17943465]
[1754856757935,0.88701696,118380.0,118370.0,0.17943465]
[1754856758135,0.4819819,118380.0,118370.0,0.17943465]
[1754856758540,0.88701696,118380.0,118370.0,0.17943465]
[1754856758742,0.88711696,118380.0,118370.0,0.17953465]
[1754856759341,0.4820819,118380.0,118370.0,0.17953465]
[1754856761436,0.90269248,118380.0,118370.0,0.17953465]
[1754856762242,0.47512742,118380.0,118370.0,0.17983465]
[1754856762547,0.39921067,118380.0,118370.0,0.17983465]
[1754856763539,0.42174067,118380.0,118370.0,0.17983465]
[1754856764340,0.48208635,118380.0,118370.0,0.17983465]
[1754856767643,0.12128635,118380.0,118370.0,0.17983465]
[1754856767846,0.02311067,118380.0,118370.0,0.58486971]
[1754856768047,0.02311067,118380.0,118370.0,0.17983465]
[1754856768946,0.03937067,118380.0,118370.0,0.17983465]
[1754856769140,0.42270067,118380.0,118370.0,0.17983465]
[1754856769343,0.48314644,118380.0,118370.0,0.17983465]
[1754856770849,0.56760094,118380.0,118370.0,0.17983465]
[1754856771048,0.48314644,118380.0,118370.0,0.17983465]
[1754856773655,0.42270067,118380.0,118370.0,0.17983465]
[1754856774449,0.40017067,118380.0,118370.0,0.17983465]
[1754856776652,0.03937067,118380.0,118370.0,0.17983465]
[1754856777548,0.39969,118380.0,118370.0,0.17983465]
[1754856777754,0.06052929,118380.0,118370.0,0.17983465]
[1754856778053,0.03799929,118380.0,118370.0,0.17983465]
[1754856780245,0.02173929,118380.0,118370.0,1.46230971]
[1754856780449,0.02173929,118380.0,118370.0,1.82310971]
[1754856780750,0.06044577,118390.0,118380.0,0.2032851]
[1754856781052,0.12715314,118400.0,118390.0,0.2032779]
[1754856781248,0.12715314,118400.0,118390.0,1.84471296]
[1754856781249,0.06670737,118400.0,118390.0,1.84471296]
[1754856781450,0.45669216,118420.0,118410.0,0.2032634]
[1754856782049,0.06832604,118420.0,118410.0,0.82385406]
[1754856782256,0.0001,118420.0,118410.0,1.69899406]
[1754856782461,0.0001,118420.0,118410.0,0.418919]
[1754856782749,0.0001,118420.0,118410.0,0.456659]
[1754856783652,0.01636,118420.0,118410.0,0.456659]
[1754856784245,0.3608,118440.0,118430.0,0.02294]
[1754856784446,0.3608,118440.0,118430.0,0.2032492]
[1754856784654,0.37371913,118450.0,118440.0,0.06947]
[1754856784959,0.37371913,118450.0,118440.0,0.2032421]
[1754856784960,0.3608,118450.0,118440.0,0.2032421]
[1754856785150,0.38343,118460.0,118440.0,0.2032421]
[1754856785456,0.39985,118460.0,118450.0,0.203235]
[1754856785641,0.39995,118460.0,118450.0,0.203335]
[1754856785848,0.48011239,118460.0,118450.0,0.203335]
[1754856786451,0.96954525,118460.0,118450.0,0.0001]
[1754856786646,0.56451019,118460.0,118450.0,0.084505]
[1754856786848,0.96954525,118460.0,118450.0,0.084505]
[1754856787358,1.84350525,118460.0,118450.0,0.084505]
[1754856787555,0.96954525,118460.0,118450.0,0.084505]
[1754856787758,1.84314525,118460.0,118450.0,0.084505]
[1754856787952,0.56451019,118460.0,118450.0,0.084505]
[1754856788157,0.56451019,118460.0,118450.0,0.108555]
[1754856788358,0.96954525,118460.0,118450.0,0.108555]
[1754856788952,1.84394525,118460.0,118450.0,0.108555]
[1754856789154,0.96954525,118460.0,118450.0,0.108555]
[1754856789458,1.84326525,118460.0,118450.0,0.108555]
[1754856792553,1.86188028,118460.0,118450.0,0.108555]
[1754856792754,1.86188028,118460.0,118450.0,0.084505]
[1754856793257,1.86188028,118460.0,118450.0,0.0001]
[1754856793459,0.1004797,118430.0,118420.0,0.1070331]
[1754856793764,0.1229168,118420.0,118410.0,0.2260247]
[1754856793965,0.88875186,118420.0,118410.0,0.2260247]
[1754856794164,0.88875186,118420.0,118410.0,0.1688647]
[1754856794465,0.100394,118410.0,118400.0,0.1688774]
[1754856794664,0.50456825,118410.0,118400.0,0.2888274]
[1754856794860,0.42013425,118410.0,118400.0,0.2888274]
[1754856795458,0.38164425,118410.0,118400.0,0.2888274]
[1754856795651,0.0001,118420.0,118410.0,0.166174]
[1754856795859,0.0001,118420.0,118410.0,0.204284]
[1754856798465,0.0001,118420.0,118410.0,0.565084]
[1754856798657,0.0001,118420.0,118410.0,0.97011906]
[1754856798860,0.0001,118420.0,118410.0,1.13901506]
[1754856799952,0.3608,118440.0,118430.0,0.1322]
[1754856800158,0.3608,118440.0,118430.0,0.20427]
[1754856800463,0.3608,118440.0,118430.0,0.60930506]
[1754856801063,0.3608,118440.0,118430.0,0.20427]
[1754856801257,0.3609,118440.0,118430.0,0.20437]
[1754856801765,0.0001,118440.0,118430.0,0.20437]
[1754856802259,0.0001,118440.0,118430.0,0.56517]
[1754856802861,0.0001,118440.0,118430.0,0.97020506]
[1754856803462,0.0001,118440.0,118430.0,0.56517]
[1754856805665,0.44096239,118460.0,118450.0,0.11985]
[1754856805870,0.46136501,118460.0,118450.0,0.2042559]
[1754856806261,0.46156501,118460.0,118450.0,0.2042559]
[1754856807770,0.46166501,118460.0,118450.0,0.2042559]
[1754856807971,0.47756501,118460.0,118450.0,0.2043559]
[1754856809472,0.47772501,118460.0,118450.0,0.2043559]
[1754856810584,0.08724597,118460.0,118450.0,0.60939096]
[1754856810971,0.10352597,118460.0,118450.0,0.2043559]
[1754856811174,0.10352597,118460.0,118450.0,0.1408359]
[1754856811175,0.98936592,118460.0,118450.0,0.1408359]
[1754856811368,0.90496712,118460.0,118450.0,0.1408359]
[1754856811582,0.13913206,118460.0,118450.0,0.2043559]
[1754856811782,0.58433086,118460.0,118450.0,0.2043559]
[1754856811979,0.58433086,118460.0,118450.0,0.0001]
[1754856811980,0.98936592,118460.0,118450.0,0.0001]
[1754856812171,0.100533,118440.0,118430.0,0.3617253]
[1754856812375,0.90940068,118440.0,118430.0,0.2773059]
[1754856812570,0.1005402,118430.0,118420.0,0.315968]
[1754856812775,0.90940788,118430.0,118420.0,0.084425]
[1754856812978,0.90940788,118430.0,118420.0,0.108475]
[1754856813575,0.90940788,118430.0,118420.0,0.141585]
[1754856813776,0.90950788,118430.0,118420.0,0.141685]